[Event "44th Chess Olympiad Open 2022"]
[Site "Chennai"]
[Date "2022.07.31"]
[Round "3.20"]
[White "Yordanov, Lachezar"]
[Black "Sanal, Vahap"]
[Result "1-0"]
[WhiteElo "2316"]
[BlackElo "2574"]
[Annotator "RC"]
[PlyCount "137"]
[EventDate "2022.??.??"]
[TimeControl "60"]

1. d4 {[%emt 0:00:03]} d6 {[%emt 0:00:20]} 2. c4 {[%emt 0:01:01]} e5 {[%emt 0:
00:00]} 3. Nc3 {[%emt 0:00:09]} exd4 {[%emt 0:00:18]} 4. Qxd4 {[%emt 0:00:07]}
Nc6 {[%emt 0:00:11]} 5. Qd2 {[%emt 0:00:05]} Nf6 {[%emt 0:00:19]} 6. e4 {
[%emt 0:03:28]} g6 {[%emt 0:01:45]} 7. Bd3 {[%emt 0:00:11]} Bg7 {[%emt 0:00:14]
} 8. Nge2 {[%emt 0:00:10]} Ne5 {[%emt 0:06:11]} 9. O-O {[%emt 0:15:37]} O-O {
[%emt 0:01:01]} 10. b3 {[%emt 0:01:52]} Nfg4 {[%emt 0:06:20]} 11. h3 {[%emt 0:
00:00]} Nxd3 {[%emt 0:02:01]} 12. Qxd3 {[%emt 0:00:06]} Ne5 {[%emt 0:00:10]}
13. Qg3 {[%emt 0:03:46]} f5 {[%emt 0:14:20]} 14. Bg5 {[%emt 0:03:33]} Qd7 {
[%emt 0:00:18]} 15. exf5 {[%emt 0:03:22]} Rxf5 {[%emt 0:02:12]} 16. Rad1 {
[%emt 0:02:40]} Nf7 {[%emt 0:15:47]} 17. Be3 {[%emt 0:00:55]} b6 {[%emt 0:00:
00]} 18. Nd4 {[%emt 0:05:18]} Bxd4 {[%emt 0:10:37]} 19. Rxd4 {[%emt 0:00:47]}
Bb7 {[%emt 0:00:07]} 20. Rfd1 {[%emt 0:02:02]} Re8 {[%emt 0:00:50]} 21. Nd5 {
[%emt 0:05:00]} Ree5 {[%emt 0:05:50]} 22. Qh4 {[%emt 0:07:04]} c5 {[%emt 0:00:
00]} 23. R4d2 {[%emt 0:06:01]} Kg7 {[%emt 0:07:49]} 24. Rd3 {[%emt 0:12:22]}
Bxd5 {[%emt 0:07:20]} 25. cxd5 {[%emt 0:00:22]} Qe8 {[%emt 0:01:36]} 26. Bd2 {
[%emt 0:04:13]} Re4 {[%emt 0:00:53]} 27. Qg3 {[%emt 0:00:10]} h5 {[%emt 0:00:
00]} 28. f4 {[%emt 0:02:20]} Kh7 {[%emt 0:00:38]} 29. Kh1 {[%emt 0:02:50]} Nh6
{[%emt 0:01:27]} 30. Re1 {[%emt 0:00:30]} Rxe1+ {[%emt 0:00:33]} 31. Bxe1 {
[%emt 0:00:02]} Qe4 {[%emt 0:00:32]} 32. Re3 {[%emt 0:00:21]} Qxd5 {[%emt 0:00:
00]} 33. Re8 {[%emt 0:00:32]} Nf7 {[%emt 0:00:38]} 34. Bc3 {[%emt 0:00:12]}
Qd1+ {[%emt 0:00:28]} 35. Kh2 {[%emt 0:00:09]} Qc1 {[%emt 0:00:31]} 36. Rg8 {
[%emt 0:00:24]} Kxg8 {[%emt 0:01:09]} 37. Qxg6+ {[%emt 0:00:04]} Kf8 {[%emt 0:
00:00]} 38. Bg7+ {[%emt 0:00:09]} Ke8 {[%emt 0:00:01]} 39. Qxf5 {[%emt 0:00:10]
} Qe3 {[%emt 0:01:14]} 40. Bf6 {[%emt 0:00:28]} Kf8 {[%emt 0:00:21]} 41. Qc8+ {
[%emt 0:35:14]} Qe8 {[%emt 0:30:02]} 42. Bg7+ {[%emt 0:00:55]} Ke7 {[%emt 0:00:
00]} 43. Qf5 {[%emt 0:00:00]} Kd8 {[%emt 0:00:00]} 44. Qxh5 {[%emt 0:00:00]}
Qe6 {[%emt 0:00:00]} 45. Qf3 {[%emt 0:00:00]} d5 {[%emt 0:00:00]} 46. h4 {
[%emt 0:00:00]} Kc7 {[%emt 0:00:00]} 47. h5 {[%emt 0:00:00]} d4 {[%emt 0:00:00]
} 48. Be5+ {[%emt 0:00:00]} Nxe5 {[%emt 0:00:00]} 49. fxe5 {[%emt 0:00:00]} Kd7
{[%emt 0:00:00]} 50. Qb7+ {[%emt 0:00:00]} Ke8 {[%emt 0:00:00]} 51. Qa8+ {
[%emt 0:00:00]} Kf7 {[%emt 0:00:00]} 52. Qxa7+ {[%emt 0:00:00]} Kg8 {[%emt 0:
00:00]} 53. Qa8+ {[%emt 0:00:00]} Kg7 {[%emt 0:00:00]} 54. Qe4 {[%emt 0:00:00]}
Qf7 {[%emt 0:02:27]} 55. g4 {[%emt 0:00:00]} Qf2+ {[%emt 0:00:25]} 56. Kh3 {
[%emt 0:00:00]} Qf1+ {[%emt 0:00:13]} 57. Kh4 {[%emt 0:00:00]} d3 {[%emt 0:00:
00]} 58. Qg6+ {[%emt 0:01:29]} Kf8 {[%emt 0:00:23]} 59. Qd6+ {[%emt 0:00:06]}
Ke8 {[%emt 0:02:26]} 60. Qe6+ {[%emt 0:06:09]} Kf8 {[%emt 0:00:18]} 61. h6 {
[%emt 0:01:52]} Qf2+ {[%emt 0:01:21]} 62. Kg5 {[%emt 0:00:09]} d2 {[%emt 0:00:
00]} 63. h7 {[%emt 0:00:33]} Qe3+ {[%emt 0:00:38]} 64. Kg6 {[%emt 0:00:04]}
Qe4+ {[%emt 0:00:09]} 65. Qf5+ {[%emt 0:00:04]} Qxf5+ {[%emt 0:00:05]} 66. gxf5
{[%emt 0:00:04]} d1=Q {[%emt 0:00:04]} 67. h8=Q+ {[%emt 0:00:08]} Ke7 {[%emt 0:
00:00]} 68. Qf6+ {[%emt 0:00:13]} Ke8 {[%emt 0:00:07]} 69. Qe6+ {[%emt 0:00:12]
} 1-0

[Event "44th Chess Olympiad Open 2022"]
[Site "Chennai"]
[Date "2022.07.31"]
[Round "3.21"]
[White "Smirin, Ilia"]
[Black "Mwali, Chitumbo"]
[Result "1-0"]
[WhiteElo "2601"]
[BlackElo "2320"]
[Annotator "RC"]
[PlyCount "87"]
[EventDate "2022.??.??"]
[TimeControl "60"]

1. e4 {[%emt 0:00:04]} e5 {[%emt 0:00:06]} 2. Nf3 {[%emt 0:00:07]} Nc6 {
[%emt 0:00:12]} 3. Bb5 {[%emt 0:00:11]} a6 {[%emt 0:00:08]} 4. Ba4 {[%emt 0:00:
00]} Nf6 {[%emt 0:00:13]} 5. O-O {[%emt 0:00:28]} b5 {[%emt 0:00:11]} 6. Bb3 {
[%emt 0:00:20]} Be7 {[%emt 0:00:09]} 7. Re1 {[%emt 0:01:51]} d6 {[%emt 0:00:15]
} 8. c3 {[%emt 0:01:07]} O-O {[%emt 0:00:27]} 9. h3 {[%emt 0:00:41]} Na5 {
[%emt 0:03:04]} 10. Bc2 {[%emt 0:00:09]} c5 {[%emt 0:00:03]} 11. d4 {[%emt 0:
00:00]} Nc6 {[%emt 0:00:49]} 12. d5 {[%emt 0:01:21]} Na5 {[%emt 0:00:06]} 13.
b3 {[%emt 0:01:05]} Ne8 {[%emt 0:04:08]} 14. Be3 {[%emt 0:09:35]} Bd7 {[%emt 0:
00:00]} 15. Nbd2 {[%emt 0:00:25]} Rc8 {[%emt 0:04:49]} 16. Nf1 {[%emt 0:04:42]}
g6 {[%emt 0:09:01]} 17. g4 {[%emt 0:03:51]} f6 {[%emt 0:00:32]} 18. Ng3 {
[%emt 0:00:40]} Ng7 {[%emt 0:01:04]} 19. Kh2 {[%emt 0:00:51]} Kh8 {[%emt 0:00:
00]} 20. Rg1 {[%emt 0:02:25]} Rg8 {[%emt 0:09:32]} 21. Qe2 {[%emt 0:02:55]} Qc7
{[%emt 0:01:35]} 22. h4 {[%emt 0:11:02]} Rcf8 {[%emt 0:08:14]} 23. Nd2 {
[%emt 0:01:17]} Qc8 {[%emt 0:03:31]} 24. f3 {[%emt 0:02:03]} f5 {[%emt 0:08:38]
} 25. exf5 {[%emt 0:01:15]} gxf5 {[%emt 0:00:15]} 26. Bh6 {[%emt 0:04:33]} Bxh4
{[%emt 0:03:11]} 27. Nxf5 {[%emt 0:07:15]} Bxf5 {[%emt 0:14:29]} 28. gxf5 {
[%emt 0:04:44]} Rf6 {[%emt 0:04:41]} 29. Bxg7+ {[%emt 0:02:08]} Rxg7 {[%emt 0:
00:00]} 30. Rxg7 {[%emt 0:00:06]} Kxg7 {[%emt 0:00:03]} 31. Rg1+ {[%emt 0:00:
00]} Kh8 {[%emt 0:00:06]} 32. Rg4 {[%emt 0:00:05]} Rh6 {[%emt 0:00:17]} 33. Kg2
{[%emt 0:00:04]} Qd8 {[%emt 0:00:50]} 34. Ne4 {[%emt 0:01:16]} Qf8 {[%emt 0:00:
00]} 35. Kf1 {[%emt 0:11:11]} Nb7 {[%emt 0:00:38]} 36. a4 {[%emt 0:00:43]} c4 {
[%emt 0:00:54]} 37. axb5 {[%emt 0:01:21]} cxb3 {[%emt 0:00:51]} 38. Bxb3 {
[%emt 0:00:21]} a5 {[%emt 0:00:03]} 39. Qe3 {[%emt 0:04:07]} Qxf5 {[%emt 0:00:
00]} 40. Ke2 {[%emt 0:00:02]} Qf8 {[%emt 0:00:32]} 41. Qa7 {[%emt 0:32:23]} Qc8
{[%emt 0:30:21]} 42. Qb6 {[%emt 0:02:55]} Bd8 {[%emt 0:00:34]} 43. Qc6 {
[%emt 0:00:12]} Rh2+ {[%emt 0:00:33]} 44. Kf1 {[%emt 0:02:14]} 1-0

[Event "44th Chess Olympiad Open 2022"]
[Site "Chennai"]
[Date "2022.07.31"]
[Round "3.21"]
[White "Postny, Evgeny"]
[Black "Kabwe Timothy"]
[Result "1-0"]
[WhiteElo "2564"]
[BlackElo "2248"]
[Annotator "RC"]
[PlyCount "129"]
[EventDate "2022.??.??"]
[TimeControl "60"]

1. d4 {[%emt 0:00:04]} d5 {[%emt 0:00:23]} 2. c4 {[%emt 0:00:06]} c6 {[%emt 0:
00:00]} 3. Nf3 {[%emt 0:00:06]} Nf6 {[%emt 0:01:23]} 4. Nc3 {[%emt 0:00:06]}
dxc4 {[%emt 0:00:45]} 5. a4 {[%emt 0:00:10]} Bf5 {[%emt 0:02:04]} 6. Nh4 {
[%emt 0:00:32]} Bg6 {[%emt 0:01:03]} 7. Nxg6 {[%emt 0:00:33]} hxg6 {[%emt 0:00:
00]} 8. e3 {[%emt 0:05:49]} e6 {[%emt 0:02:09]} 9. Bxc4 {[%emt 0:00:07]} Nbd7 {
[%emt 0:00:52]} 10. O-O {[%emt 0:02:52]} Bd6 {[%emt 0:01:48]} 11. g3 {[%emt 0:
00:00]} O-O {[%emt 0:03:23]} 12. Qe2 {[%emt 0:07:59]} Qe7 {[%emt 0:12:43]} 13.
e4 {[%emt 0:08:59]} e5 {[%emt 0:04:15]} 14. d5 {[%emt 0:02:02]} cxd5 {[%emt 0:
00:00]} 15. Nxd5 {[%emt 0:00:49]} Nxd5 {[%emt 0:00:18]} 16. Bxd5 {[%emt 0:00:
00]} Nf6 {[%emt 0:02:54]} 17. Bg5 {[%emt 0:04:23]} Qd7 {[%emt 0:02:47]} 18.
Rfd1 {[%emt 0:09:15]} Bc5 {[%emt 0:03:33]} 19. Qf3 {[%emt 0:20:22]} Qg4 {
[%emt 0:08:30]} 20. Qxg4 {[%emt 0:00:17]} Nxg4 {[%emt 0:00:03]} 21. Rd2 {
[%emt 0:00:31]} Rab8 {[%emt 0:00:44]} 22. Rc1 {[%emt 0:12:47]} b6 {[%emt 0:00:
00]} 23. a5 {[%emt 0:00:43]} Bb4 {[%emt 0:18:45]} 24. Rd3 {[%emt 0:02:43]} bxa5
{[%emt 0:09:23]} 25. Rf3 {[%emt 0:06:54]} Nf6 {[%emt 0:03:01]} 26. Bxf6 {
[%emt 0:00:36]} gxf6 {[%emt 0:00:12]} 27. Rxf6 {[%emt 0:00:27]} Rb6 {[%emt 0:
00:00]} 28. Rxb6 {[%emt 0:03:41]} axb6 {[%emt 0:00:11]} 29. Rc6 {[%emt 0:00:04]
} Kg7 {[%emt 0:00:25]} 30. Rxb6 {[%emt 0:00:05]} Re8 {[%emt 0:00:14]} 31. Kg2 {
[%emt 0:02:52]} Re7 {[%emt 0:01:35]} 32. Rc6 {[%emt 0:00:10]} Ra7 {[%emt 0:00:
00]} 33. b3 {[%emt 0:02:19]} Be7 {[%emt 0:01:27]} 34. Rc4 {[%emt 0:02:04]} Bd6
{[%emt 0:00:26]} 35. Rc6 {[%emt 0:02:23]} Be7 {[%emt 0:00:15]} 36. Rc4 {
[%emt 0:00:16]} Bd6 {[%emt 0:00:13]} 37. h4 {[%emt 0:03:08]} Rc7 {[%emt 0:00:
00]} 38. Bc6 {[%emt 0:00:21]} Bb4 {[%emt 0:00:54]} 39. Kf3 {[%emt 0:00:40]} Kf6
{[%emt 0:00:34]} 40. Ke2 {[%emt 0:00:30]} Kg7 {[%emt 0:00:29]} 41. f3 {[%emt 0:
00:00]} f6 {[%emt 0:30:43]} 42. f4 {[%emt 0:00:00]} Kh6 {[%emt 0:00:00]} 43.
Kf3 {[%emt 0:00:00]} exf4 {[%emt 0:00:00]} 44. gxf4 {[%emt 0:00:00]} f5 {
[%emt 0:00:00]} 45. e5 {[%emt 0:00:00]} Be1 {[%emt 0:00:00]} 46. Ke3 {[%emt 0:
00:00]} Bxh4 {[%emt 0:00:00]} 47. Kd4 {[%emt 0:00:00]} Be7 {[%emt 0:00:00]} 48.
Kd5 {[%emt 0:00:00]} g5 {[%emt 0:00:00]} 49. Ke6 {[%emt 0:00:00]} gxf4 {
[%emt 0:00:00]} 50. Kxf5 {[%emt 0:00:00]} Rc8 {[%emt 0:00:00]} 51. Kxf4 {
[%emt 0:00:00]} Rb8 {[%emt 0:03:32]} 52. Be4 {[%emt 0:00:33]} Kg7 {[%emt 0:00:
00]} 53. Rc7 {[%emt 0:00:23]} Kf8 {[%emt 0:01:32]} 54. Bd5 {[%emt 0:00:39]}
Rb4+ {[%emt 0:03:30]} 55. Kf5 {[%emt 0:00:07]} Ke8 {[%emt 0:05:09]} 56. Ke6 {
[%emt 0:01:45]} Rb6+ {[%emt 0:00:37]} 57. Bc6+ {[%emt 0:01:07]} Kd8 {[%emt 0:
00:00]} 58. Rd7+ {[%emt 0:00:04]} Kc8 {[%emt 0:00:14]} 59. Kxe7 {[%emt 0:00:21]
} Rxc6 {[%emt 0:00:18]} 60. Rd5 {[%emt 0:00:43]} Rc7+ {[%emt 0:02:52]} 61. Kf6
{[%emt 0:00:32]} Rb7 {[%emt 0:00:37]} 62. e6 {[%emt 0:00:45]} Rxb3 {[%emt 0:00:
00]} 63. e7 {[%emt 0:00:33]} Rf3+ {[%emt 0:00:45]} 64. Ke6 {[%emt 0:01:38]}
Re3+ {[%emt 0:00:58]} 65. Kd6 {[%emt 0:00:07]} 1-0

[Event "44th Chess Olympiad Open 2022"]
[Site "Chennai"]
[Date "2022.07.31"]
[Round "3.21"]
[White "Bwalya, Gillan"]
[Black "Nabaty, Tamir"]
[Result "0-1"]
[WhiteElo "2396"]
[BlackElo "2631"]
[Annotator "RC"]
[PlyCount "52"]
[EventDate "2022.??.??"]
[TimeControl "60"]

1. d4 {[%emt 0:00:48]} d5 {[%emt 0:00:07]} 2. Nf3 {[%emt 0:00:40]} Nf6 {
[%emt 0:02:33]} 3. c4 {[%emt 0:00:23]} dxc4 {[%emt 0:02:40]} 4. e3 {[%emt 0:00:
00]} e6 {[%emt 0:00:17]} 5. Bxc4 {[%emt 0:00:35]} a6 {[%emt 0:00:09]} 6. O-O {
[%emt 0:04:00]} c5 {[%emt 0:00:16]} 7. Nc3 {[%emt 0:01:23]} b5 {[%emt 0:00:27]}
8. Be2 {[%emt 0:00:11]} Bb7 {[%emt 0:03:37]} 9. dxc5 {[%emt 0:01:21]} Bxc5 {
[%emt 0:02:33]} 10. Qxd8+ {[%emt 0:07:40]} Kxd8 {[%emt 0:00:36]} 11. Nd2 {
[%emt 0:03:09]} Bd6 {[%emt 0:10:00]} 12. a4 {[%emt 0:01:41]} b4 {[%emt 0:00:36]
} 13. Nc4 {[%emt 0:00:25]} Bc7 {[%emt 0:00:35]} 14. Nb1 {[%emt 0:05:49]} a5 {
[%emt 0:01:47]} 15. Nbd2 {[%emt 0:00:37]} Ke7 {[%emt 0:01:39]} 16. Nb3 {
[%emt 0:02:09]} Rc8 {[%emt 0:08:55]} 17. f3 {[%emt 0:13:48]} Ba6 {[%emt 0:00:
00]} 18. Nbd2 {[%emt 0:01:15]} Nd5 {[%emt 0:02:23]} 19. Kf2 {[%emt 0:03:43]}
Nd7 {[%emt 0:00:48]} 20. b3 {[%emt 0:08:37]} Be5 {[%emt 0:29:44]} 21. Bb2 {
[%emt 0:22:59]} Bxb2 {[%emt 0:00:00]} 22. Nxb2 {[%emt 0:00:15]} Rc2 {[%emt 0:
00:00]} 23. Nbc4 {[%emt 0:00:53]} Bxc4 {[%emt 0:02:41]} 24. Nxc4 {[%emt 0:00:
00]} Nc3 {[%emt 0:00:00]} 25. Rfe1 {[%emt 0:02:15]} Nc5 {[%emt 0:00:00]} 26.
Kf1 {[%emt 0:00:14]} Nxb3 {[%emt 0:00:00]} 0-1

[Event "44th Chess Olympiad Open 2022"]
[Site "Chennai"]
[Date "2022.07.31"]
[Round "3.21"]
[White "Lungu, Nase"]
[Black "Rodshtein, Maxim"]
[Result "0-1"]
[WhiteElo "2216"]
[BlackElo "2596"]
[Annotator "RC"]
[PlyCount "62"]
[EventDate "2022.??.??"]
[TimeControl "60"]

1. c4 {[%emt 0:00:05]} e5 {[%emt 0:00:24]} 2. Nc3 {[%emt 0:00:22]} Nf6 {
[%emt 0:00:17]} 3. Nf3 {[%emt 0:00:38]} Nc6 {[%emt 0:00:20]} 4. e3 {[%emt 0:00:
00]} Bb4 {[%emt 0:01:01]} 5. Nd5 {[%emt 0:01:57]} e4 {[%emt 0:14:41]} 6. Nxb4 {
[%emt 0:05:29]} Nxb4 {[%emt 0:00:06]} 7. a3 {[%emt 0:02:13]} Nc6 {[%emt 0:00:
00]} 8. Ng1 {[%emt 0:00:20]} O-O {[%emt 0:10:00]} 9. d4 {[%emt 0:01:59]} exd3 {
[%emt 0:01:33]} 10. Bxd3 {[%emt 0:01:19]} d5 {[%emt 0:01:01]} 11. cxd5 {
[%emt 0:22:28]} Qxd5 {[%emt 0:01:32]} 12. Nf3 {[%emt 0:03:07]} Rd8 {[%emt 0:00:
00]} 13. Be2 {[%emt 0:00:08]} Qe4 {[%emt 0:00:58]} 14. Qb3 {[%emt 0:07:07]} Be6
{[%emt 0:24:56]} 15. Qxb7 {[%emt 0:08:40]} Rab8 {[%emt 0:04:34]} 16. Qxc7 {
[%emt 0:01:25]} Qc2 {[%emt 0:00:44]} 17. Qf4 {[%emt 0:26:26]} Nd5 {[%emt 0:00:
00]} 18. Nd4 {[%emt 0:08:06]} Nxd4 {[%emt 0:02:06]} 19. Qxd4 {[%emt 0:00:38]}
Nb4 {[%emt 0:00:13]} 20. axb4 {[%emt 0:01:10]} Rxd4 {[%emt 0:00:09]} 21. exd4 {
[%emt 0:00:20]} Re8 {[%emt 0:04:41]} 22. Be3 {[%emt 0:01:01]} Qxb2 {[%emt 0:00:
00]} 23. Rd1 {[%emt 0:00:22]} Bd5 {[%emt 0:02:05]} 24. Rg1 {[%emt 0:03:18]}
Qxb4+ {[%emt 0:00:26]} 25. Kf1 {[%emt 0:00:13]} a5 {[%emt 0:00:25]} 26. Bd3 {
[%emt 0:00:29]} Bb3 {[%emt 0:01:47]} 27. Rc1 {[%emt 0:01:35]} a4 {[%emt 0:00:
00]} 28. Ke2 {[%emt 0:00:12]} Qxd4 {[%emt 0:00:18]} 29. Rge1 {[%emt 0:01:36]}
Bd5 {[%emt 0:08:24]} 30. g3 {[%emt 0:01:47]} a3 {[%emt 0:00:42]} 31. Bb5 {
[%emt 0:00:25]} Qb2+ {[%emt 0:00:15]} 0-1

[Event "44th Chess Olympiad Open 2022"]
[Site "Chennai"]
[Date "2022.07.31"]
[Round "3.22"]
[White "Ivic, Velimir"]
[Black "Juarez Flores, Carlos A."]
[Result "0-1"]
[WhiteElo "2581"]
[BlackElo "2335"]
[Annotator "RC"]
[PlyCount "126"]
[EventDate "2022.??.??"]
[TimeControl "60"]

1. e4 {[%emt 0:00:12]} c6 {[%emt 0:00:14]} 2. d4 {[%emt 0:00:27]} d5 {[%emt 0:
00:00]} 3. e5 {[%emt 0:00:41]} Bf5 {[%emt 0:00:03]} 4. h4 {[%emt 0:00:07]} h5 {
[%emt 0:00:07]} 5. c4 {[%emt 0:00:15]} e6 {[%emt 0:00:25]} 6. Nc3 {[%emt 0:00:
00]} Ne7 {[%emt 0:01:26]} 7. Nge2 dxc4 {[%emt 0:01:37]} 8. Ng3 Bd3 {[%emt 0:00:
00]} 9. Bxd3 {[%emt 0:02:17]} cxd3 {[%emt 0:00:00]} 10. Qxd3 {[%emt 0:03:53]}
Nd7 {[%emt 0:02:29]} 11. Qe2 {[%emt 0:02:20]} Nb6 {[%emt 0:00:37]} 12. Nce4 {
[%emt 0:02:01]} Nf5 {[%emt 0:23:28]} 13. Nxf5 {[%emt 0:21:46]} exf5 {[%emt 0:
00:00]} 14. Ng3 {[%emt 0:08:26]} g6 {[%emt 0:00:00]} 15. Bg5 {[%emt 0:03:28]}
Be7 {[%emt 0:00:00]} 16. Bxe7 {[%emt 0:04:12]} Qxe7 {[%emt 0:00:00]} 17. O-O-O
{[%emt 0:02:28]} O-O-O {[%emt 0:00:00]} 18. Qc2 {[%emt 0:02:52]} Nd5 {[%emt 0:
00:00]} 19. Kb1 {[%emt 0:07:19]} Kb8 {[%emt 0:00:07]} 20. Qc1 {[%emt 0:05:29]}
Rd7 {[%emt 0:03:03]} 21. Ne2 {[%emt 0:01:18]} Rhd8 {[%emt 0:00:21]} 22. Rd3 {
[%emt 0:04:40]} Nc7 {[%emt 0:01:56]} 23. g3 {[%emt 0:01:10]} Ne6 {[%emt 0:00:
00]} 24. Rhd1 {[%emt 0:00:37]} Nc5 {[%emt 0:06:01]} 25. Re3 {[%emt 0:11:48]}
Ne4 {[%emt 0:05:48]} 26. f3 {[%emt 0:03:31]} Nxg3 {[%emt 0:00:00]} 27. Nxg3 {
[%emt 0:00:29]} f4 {[%emt 0:00:00]} 28. Re4 {[%emt 0:00:41]} fxg3 {[%emt 0:00:
00]} 29. Qf4 {[%emt 0:00:09]} Qe6 {[%emt 0:07:15]} 30. Qxg3 {[%emt 0:00:34]} c5
{[%emt 0:00:18]} 31. Qf4 {[%emt 0:02:05]} Ka8 {[%emt 0:01:37]} 32. Qg5 {
[%emt 0:02:51]} Rd5 {[%emt 0:04:45]} 33. Rf4 {[%emt 0:01:48]} Qe8 {[%emt 0:00:
00]} 34. Qf6 {[%emt 0:01:45]} cxd4 {[%emt 0:07:09]} 35. e6 {[%emt 0:11:43]}
fxe6 {[%emt 0:08:53]} 36. Rfxd4 {[%emt 0:00:00]} Rxd4 {[%emt 0:00:11]} 37. Rxd4
{[%emt 0:00:00]} Rxd4 {[%emt 0:00:06]} 38. Qxd4 {[%emt 0:00:00]} e5 {[%emt 0:
00:00]} 39. Qd5 {[%emt 0:00:00]} a6 {[%emt 0:00:24]} 40. a3 {[%emt 0:01:25]}
Qe7 {[%emt 0:18:56]} 41. Qc4 {[%emt 0:00:21]} Ka7 {[%emt 0:00:00]} 42. Ka2 {
[%emt 0:17:17]} Qd6 {[%emt 0:00:00]} 43. Ka1 {[%emt 0:14:08]} Qd4 {[%emt 0:00:
00]} 44. Qc7 {[%emt 0:05:34]} Qd1+ {[%emt 0:07:52]} 45. Ka2 {[%emt 0:00:00]}
Qd5+ {[%emt 0:00:10]} 46. Ka1 {[%emt 0:00:00]} a5 {[%emt 0:00:21]} 47. Qg7 {
[%emt 0:04:54]} Qd6 {[%emt 0:00:15]} 48. Qf7 {[%emt 0:00:00]} Ka6 {[%emt 0:00:
00]} 49. Qc4+ {[%emt 0:00:00]} b5 {[%emt 0:01:41]} 50. Qf7 {[%emt 0:00:00]} a4
{[%emt 0:00:36]} 51. Ka2 {[%emt 0:00:00]} Kb6 {[%emt 0:00:17]} 52. b4 {[%emt 0:
00:00]} axb3+ {[%emt 0:03:59]} 53. Kxb3 {[%emt 0:00:00]} Qd3+ {[%emt 0:02:34]}
54. Kb4 {[%emt 0:00:00]} Qd6+ {[%emt 0:02:22]} 55. Kb3 {[%emt 0:00:00]} Kc5 {
[%emt 0:00:50]} 56. Qa7+ {[%emt 0:00:00]} Kd5 {[%emt 0:00:46]} 57. Qb7+ {
[%emt 0:00:00]} Qc6 {[%emt 0:00:12]} 58. Qxc6+ {[%emt 0:00:00]} Kxc6 {[%emt 0:
00:00]} 59. Kb4 {[%emt 0:00:37]} g5 {[%emt 0:00:25]} 60. hxg5 {[%emt 0:00:00]}
Kd6 {[%emt 0:00:02]} 61. g6 {[%emt 0:00:00]} Ke6 {[%emt 0:00:54]} 62. g7 {
[%emt 0:00:00]} Kf7 {[%emt 0:00:03]} 63. Kxb5 {[%emt 0:00:00]} h4 {[%emt 0:00:
00]} 0-1

[Event "44th Chess Olympiad Open 2022"]
[Site "Chennai"]
[Date "2022.07.31"]
[Round "3.22"]
[White "Ivanisevic, Ivan"]
[Black "Galvez Dastin, Eduardo"]
[Result "1/2-1/2"]
[WhiteElo "2561"]
[BlackElo "2152"]
[Annotator "RC"]
[PlyCount "87"]
[EventDate "2022.??.??"]
[TimeControl "60"]

1. d4 {[%emt 0:00:04]} d5 {[%emt 0:00:10]} 2. c4 {[%emt 0:00:05]} c6 {[%emt 0:
00:00]} 3. Nf3 {[%emt 0:00:03]} dxc4 {[%emt 0:00:21]} 4. e3 {[%emt 0:00:07]}
Be6 {[%emt 0:00:19]} 5. Nc3 {[%emt 0:00:07]} Nf6 {[%emt 0:00:42]} 6. Ng5 {
[%emt 0:00:20]} Bd5 {[%emt 0:00:08]} 7. e4 {[%emt 0:01:17]} h6 {[%emt 0:00:04]}
8. exd5 {[%emt 0:00:04]} hxg5 {[%emt 0:00:06]} 9. dxc6 {[%emt 0:00:36]} Nxc6 {
[%emt 0:00:07]} 10. d5 {[%emt 0:00:03]} Na5 {[%emt 0:00:55]} 11. b4 {[%emt 0:
00:00]} cxb3 {[%emt 0:00:58]} 12. Bb5+ {[%emt 0:01:51]} Nd7 {[%emt 0:00:23]}
13. axb3 {[%emt 0:00:04]} Qc7 {[%emt 1:00:54]} 14. Bd2 {[%emt 0:02:47]} b6 {
[%emt 0:00:26]} 15. b4 {[%emt 0:12:07]} Nc4 {[%emt 0:03:41]} 16. d6 {[%emt 0:
00:00]} Nxd6 {[%emt 0:04:31]} 17. Qf3 {[%emt 0:00:53]} Rd8 {[%emt 0:03:13]} 18.
Nd5 {[%emt 0:31:45]} Qb8 {[%emt 0:01:02]} 19. Bc6 {[%emt 0:03:08]} Nc4 {
[%emt 0:05:32]} 20. Bc3 {[%emt 0:10:17]} e6 {[%emt 0:01:50]} 21. Qe2 {[%emt 0:
00:00]} b5 {[%emt 0:09:23]} 22. Bxb5 {[%emt 0:02:12]} Ncb6 {[%emt 0:01:40]} 23.
Nxb6 {[%emt 0:04:15]} axb6 {[%emt 0:01:02]} 24. g3 {[%emt 0:02:56]} Be7 {
[%emt 0:00:21]} 25. Bxg7 {[%emt 0:02:09]} Bxb4+ {[%emt 0:00:12]} 26. Kf1 {
[%emt 0:00:04]} Qb7 {[%emt 0:01:01]} 27. Kg1 {[%emt 0:01:13]} Rg8 {[%emt 0:00:
00]} 28. Bd4 {[%emt 0:01:29]} Bc5 {[%emt 0:03:09]} 29. Bf6 {[%emt 0:00:35]} Be7
{[%emt 0:00:07]} 30. Bd4 {[%emt 0:03:34]} Kf8 {[%emt 0:00:07]} 31. Rd1 {
[%emt 0:01:17]} Nf6 {[%emt 0:00:55]} 32. h4 {[%emt 0:00:14]} gxh4 {[%emt 0:00:
00]} 33. Rxh4 {[%emt 0:00:22]} Qd5 {[%emt 0:00:51]} 34. Ba4 {[%emt 0:01:59]}
Qg5 {[%emt 0:00:21]} 35. Kf1 {[%emt 0:00:33]} Nd5 {[%emt 0:00:27]} 36. Qf3 {
[%emt 0:01:00]} Qg6 {[%emt 0:00:32]} 37. Rh3 {[%emt 0:02:57]} Qg4 {[%emt 0:00:
00]} 38. Qxg4 {[%emt 0:00:40]} Rxg4 {[%emt 0:00:05]} 39. Rh8+ {[%emt 0:00:39]}
Rg8 {[%emt 0:00:07]} 40. Rxg8+ {[%emt 0:00:06]} Kxg8 {[%emt 0:00:09]} 41. Ke2 {
[%emt 0:30:43]} Rc8 {[%emt 0:31:17]} 42. Bb3 {[%emt 0:01:28]} Nc3+ {[%emt 0:00:
00]} 43. Bxc3 {[%emt 0:00:09]} Rxc3 {[%emt 0:00:06]} 44. Rd3 {[%emt 0:00:14]}
1/2-1/2